bitfinex-derivatives/quotes_SOLF0:USTF0_20250428
["timestamp","ask_amount","ask_price","bid_price","bid_amount"]
[1745831208737,6.5923,151.65,151.62,6.593]
[1745831209141,6.5926,151.64,151.59,34.50107567]
[1745831209839,6.5922,151.65,151.62,6.5933]
[1745831210743,6.5922,151.65,151.62,6.5933]
[1745831213151,6.5925,151.64,151.61,6.5935]
[1745831213355,34.50107567,151.65,151.57,4.0172]
[1745831213649,11.28107567,151.63,151.55,23.22]
[1745831213853,11.28107567,151.63,151.57,6.5954]
[1745831214148,13.29627567,151.63,151.57,6.5954]
[1745831214348,6.5946,151.59,151.56,6.5957]
[1745831214549,13.29627567,151.63,151.55,23.22]
[1745831214950,13.29627567,151.63,151.57,6.5952]
[1745831215355,6.5944,151.6,151.57,6.5952]
[1745831218457,11.28107567,151.61,151.55,23.22]
[1745831218653,23.22,151.6,151.53,6.0012]
[1745831218955,25.2352,151.63,151.56,11.28107567]
[1745831219252,6.5946,151.59,151.56,6.5955]
[1745831219457,34.50107567,151.63,151.56,6.5955]
[1745831219660,11.28107567,151.61,151.53,6.0012]
[1745831220455,6.5948,151.59,151.56,6.5957]
[1745831221262,11.28107567,151.76,151.57,34.50107567]
[1745831221263,34.50107567,151.72,151.57,34.50107567]
[1745831221561,6.5904,151.69,151.65,6.5919]
[1745831221859,23.22,151.71,151.65,6.5919]
[1745831222161,6.5902,151.7,151.65,6.5919]
[1745831222362,23.22,151.71,151.65,6.5919]
[1745831222854,29.224,151.71,151.65,6.5919]
[1745831223057,6.5901,151.7,151.66,6.5915]
[1745831223362,27.2541,151.71,151.64,11.28107567]
[1745831223962,33.8439,151.71,151.67,6.5908]
[1745831224259,33.8439,151.71,151.64,11.28107567]
[1745831224758,33.8439,151.71,151.68,6.5906]
[1745831224962,6.5899,151.7,151.68,6.5906]
[1745831225458,6.5899,151.7,151.67,6.5909]
[1745831225760,27.2541,151.71,151.62,17.10837567]
[1745831226062,27.2541,151.71,151.67,6.591]
[1745831226664,6.5901,151.7,151.67,6.591]
[1745831226960,27.2541,151.71,151.67,6.591]
[1745831229567,6.5905,151.69,151.66,6.5914]
[1745831229767,6.5907,151.68,151.66,6.5914]
[1745831230365,6.5904,151.69,151.66,6.5914]
[1745831230664,11.28107567,151.7,151.62,17.10837567]
[1745831230864,6.5908,151.68,151.62,17.10837567]
[1745831231265,27.2541,151.71,151.62,17.10837567]
[1745831231560,6.5904,151.69,151.62,17.10837567]
[1745831231963,6.5904,151.69,151.66,6.5913]
[1745831232160,6.59,151.7,151.62,17.10837567]
[1745831232463,23.22,151.71,151.62,17.10837567]
[1745831232864,6.59,151.7,151.62,17.10837567]
[1745831233167,23.22,151.71,151.66,6.5912]
[1745831233367,6.5901,151.7,151.62,17.10837567]
[1745831233961,6.5901,151.7,151.67,6.591]
[1745831234466,6.5904,151.69,151.67,6.591]
[1745831235166,6.59,151.7,151.67,6.591]
[1745831235368,6.59,151.7,151.68,6.5906]
[1745831235568,6.59,151.7,151.62,17.10837567]
[1745831235868,6.5903,151.69,151.62,17.10837567]
[1745831237471,6.5903,151.69,151.66,6.5912]
[1745831238170,6.5903,151.69,151.67,6.5911]
[1745831238667,6.5899,151.7,151.67,6.5911]
[1745831238974,23.22,151.71,151.68,6.5906]
[1745831239371,6.5899,151.7,151.67,6.5909]
[1745831240173,23.22,151.71,151.66,6.5914]
[1745831240371,11.28107567,151.7,151.66,6.5914]
[1745831240573,6.5906,151.69,151.66,6.5914]
[1745831240773,11.28107567,151.7,151.66,6.5914]
[1745831242175,6.5906,151.69,151.66,6.5914]
[1745831242475,11.28107567,151.7,151.66,6.5914]
[1745831243076,6.5908,151.68,151.66,6.5914]
[1745831244674,11.28107567,151.7,151.61,23.22]
[1745831244981,11.28107567,151.64,151.57,23.22]
[1745831245178,11.28107567,151.62,151.57,23.22]
[1745831245669,11.28107567,151.62,151.54,23.22]
[1745831245869,6.5942,151.6,151.57,6.5951]
[1745831246779,6.5942,151.6,151.56,6.5957]
[1745831247074,6.5947,151.59,151.56,6.5957]
[1745831247284,11.28107567,151.62,151.54,23.22]
[1745831247577,23.22,151.61,151.56,6.5958]
[1745831247878,23.22,151.61,151.55,6.5962]
[1745831248378,6.5952,151.58,151.54,23.22]
[1745831248578,23.22,151.61,151.54,23.22]
[1745831248976,6.5949,151.59,151.56,6.5959]
[1745831249280,6.5949,151.59,151.54,23.22]
[1745831250281,6.5949,151.59,151.56,6.5958]
[1745831250977,23.22,151.61,151.57,6.5954]
[1745831251281,23.22,151.61,151.55,11.28107567]
[1745831251581,29.8137,151.61,151.58,6.5949]
[1745831251975,23.22,151.61,151.55,11.28107567]
[1745831252380,6.5935,151.62,151.55,11.28107567]
[1745831253384,6.5935,151.62,151.59,6.5946]
[1745831254289,6.5935,151.62,151.58,6.5949]
[1745831254487,6.5937,151.61,151.58,6.5949]
[1745831255886,6.5935,151.62,151.59,6.5946]
[1745831256189,34.50107567,151.64,151.59,6.5946]
[1745831256988,23.22,151.64,151.54,23.22]
[1745831257291,6.5943,151.6,151.54,23.22]
[1745831257589,11.28107567,151.62,151.57,6.5952]
[1745831257982,34.50107567,151.64,151.54,34.50107567]
[1745831258391,6.5938,151.61,151.58,6.5947]
[1745831258688,34.50107567,151.64,151.54,34.50107567]
[1745831259491,6.594,151.61,151.58,6.5946]
[1745831260503,6.5935,151.62,151.59,6.5946]
[1745831260892,34.50107567,151.64,151.54,34.50107567]
[1745831261594,6.5938,151.61,151.58,6.5948]
[1745831262294,6.5938,151.61,151.59,6.5946]
[1745831262793,6.5938,151.61,151.58,6.5948]
[1745831263097,6.5946,151.6,151.54,34.50107567]
[1745831263293,11.28107567,151.62,151.56,6.5956]
[1745831263489,11.28107567,151.62,151.54,23.22]
[1745831263684,6.5944,151.6,151.54,23.22]
[1745831263992,11.28107567,151.62,151.58,6.5947]
[1745831264193,6.594,151.61,151.58,6.5947]
[1745831269390,6.594,151.61,151.59,6.5946]
[1745831269597,6.5941,151.6,151.54,34.50107567]
[1745831269794,6.5941,151.6,151.58,6.5948]
[1745831272304,6.5935,151.62,151.59,6.5946]
[1745831272502,3.8694,151.63,151.54,34.50107567]
[1745831272901,6.594,151.61,151.58,6.5948]
[1745831273503,6.5942,151.6,151.58,6.5948]
[1745831274501,6.5939,151.61,151.58,6.5948]
[1745831274900,11.28107567,151.62,151.58,6.5948]
[1745831275296,6.5938,151.61,151.54,34.50107567]
[1745831275606,11.28107567,151.62,151.54,23.22]
[1745831275807,11.28107567,151.6,151.54,23.22]
[1745831276106,34.78107567,151.6,151.54,29.8165]
[1745831276308,6.5953,151.58,151.54,23.22]
[1745831276706,6.5953,151.58,151.55,6.596]
[1745831276908,6.5955,151.57,151.55,6.596]
[1745831277108,6.5955,151.57,151.54,23.22]
[1745831277407,6.5955,151.57,151.54,29.8165]
[1745831278407,6.5955,151.57,151.55,6.5962]
[1745831278607,6.5952,151.58,151.55,6.5962]
[1745831278907,34.78107567,151.6,151.54,29.8165]
[1745831279213,6.5956,151.57,151.54,29.8165]
[1745831282108,6.5951,151.58,151.55,6.5962]
[1745831283710,34.78107567,151.6,151.54,23.22]
[1745831283911,23.5,151.6,151.54,23.22]
[1745831284311,6.5946,151.59,151.57,6.5953]
[1745831284611,23.5,151.6,151.57,6.5953]
[1745831285213,30.0945,151.6,151.57,6.5953]
[1745831285412,23.5,151.6,151.57,6.5953]
[1745831286710,30.0944,151.6,151.57,6.5953]
[1745831286912,23.5,151.6,151.58,6.5947]
[1745831287113,27.3694,151.63,151.58,6.5947]
[1745831287711,11.28107567,151.62,151.57,6.5952]
[1745831288316,11.28107567,151.6,151.56,6.5957]
[1745831288513,11.28107567,151.6,151.54,23.22]
[1745831288710,11.28107567,151.58,151.54,23.22]
[1745831288914,11.28107567,151.58,151.53,6.5969]
[1745831289512,6.5963,151.56,151.53,6.5969]
[1745831289717,11.28107567,151.56,151.52,6.5973]
[1745831290318,11.28107567,151.56,151.51,6.5978]
[1745831290613,11.28107567,151.54,151.49,23.5]
[1745831290820,6.5981,151.51,151.46,23.5]
[1745831291318,6.5978,151.52,151.49,6.5988]
[1745831291816,23.5,151.54,151.51,6.5977]
[1745831292218,23.5,151.54,151.46,34.78107567]
[1745831292512,6.5972,151.53,151.5,6.5981]
[1745831292717,23.5,151.54,151.46,23.5]
[1745831292917,23.5,151.54,151.51,6.5977]
[1745831293119,4.61774984,151.53,151.51,6.5977]
[1745831293321,4.61774984,151.52,151.51,6.5977]
[1745831295217,6.5965,151.55,151.52,6.5974]
[1745831295421,4.61415311,151.54,151.52,6.5974]
[1745831295620,4.61415311,151.53,151.52,6.5974]
[1745831295918,4.6141531,151.53,151.52,6.5974]
[1745831296320,4.6141531,151.53,151.51,6.5979]
[1745831296520,4.6141531,151.52,151.51,6.5979]
[1745831299324,4.6141531,151.52,151.46,34.78107567]
[1745831299529,4.6141531,151.51,151.5,6.5983]
[1745831299827,4.6141531,151.51,151.46,23.5]
[1745831300127,11.28107567,151.54,151.49,6.5988]
[1745831300330,6.598,151.52,151.49,6.5988]
[1745831300521,4.60895658,151.51,151.49,6.5988]
[1745831300724,11.28107567,151.54,151.48,6.5991]
[1745831300920,4.60782442,151.53,151.46,23.5]
[1745831301123,4.60782442,151.52,151.49,6.5989]
[1745831301321,4.60782442,151.51,151.49,6.5989]
[1745831301625,4.60715249,151.5,151.49,6.5989]
[1745831302932,4.60715249,151.5,151.46,23.5]
[1745831303134,11.28107567,151.52,151.46,23.5]
[1745831303433,6.5988,151.5,151.47,6.5996]
[1745831303935,6.5994,151.48,151.45,6.6005]
[1745831305031,6.5994,151.48,151.43,23.4]
[1745831305231,11.20348511,151.47,151.43,23.4]
[1745831305430,6.5999,151.47,151.43,23.4]
[1745831305626,6.5996,151.48,151.45,6.6007]
[1745831305934,4.60104988,151.47,151.43,23.4]
[1745831306131,4.60104988,151.46,151.44,6.6009]
[1745831306334,6.6,151.47,151.44,6.6009]
[1745831306528,4.59845412,151.46,151.43,23.4]
[1745831306733,23.4,151.49,151.43,23.4]
[1745831306933,11.19791306,151.48,151.45,6.6004]
[1745831307234,4.59841306,151.47,151.45,6.6004]
[1745831307431,6.5995,151.48,151.45,6.6004]
[1745831307631,4.59620812,151.47,151.46,6.6002]
[1745831308337,29.9991,151.49,151.46,6.6002]
[1745831308635,11.19385425,151.48,151.45,6.6005]
[1745831308933,6.5995,151.48,151.45,6.6005]
[1745831310035,29.9992,151.49,151.45,6.6005]
[1745831310236,4.59287364,151.48,151.45,6.6005]
[1745831310437,29.9992,151.49,151.45,6.6005]
[1745831310637,4.59166227,151.48,151.45,6.6005]
[1745831310834,29.9992,151.49,151.45,6.6005]
[1745831311030,11.19103062,151.48,151.45,6.6005]
[1745831311236,6.5994,151.48,151.45,6.6005]
[1745831311733,11.28107567,151.48,151.43,6.6013]
[1745831311939,4.59111313,151.47,151.43,6.6013]
[1745831312134,4.59111313,151.46,151.43,6.6013]
[1745831312334,6.6,151.47,151.43,6.6013]
[1745831312638,6.6,151.47,151.44,6.6011]
[1745831313839,6.6003,151.46,151.44,6.6011]
[1745831314139,11.28107567,151.48,151.44,6.6011]
[1745831314340,4.58854984,151.47,151.39,38.56177567]
[1745831314540,36.62687567,151.52,151.43,11.28107567]
[1745831314741,4.58635344,151.51,151.43,34.68107567]
[1745831314941,4.58635344,151.5,151.48,6.5991]
[1745831315142,36.62687567,151.52,151.48,6.5991]
[1745831315345,11.18493284,151.51,151.48,6.5991]
[1745831315533,36.62687567,151.52,151.47,6.5997]
[1745831315738,6.5988,151.5,151.47,6.5997]
[1745831315937,6.5988,151.5,151.44,5.9326]
[1745831317842,6.5988,151.5,151.46,6.5999]
[1745831318043,6.599,151.49,151.46,6.5999]
[1745831318543,36.62687567,151.52,151.47,6.5997]
[1745831318736,6.5988,151.5,151.47,6.5997]
[1745831319842,6.599,151.49,151.47,6.5997]
[1745831320241,6.599,151.49,151.46,6.6001]
[1745831320544,6.5987,151.5,151.44,5.9326]
[1745831320735,6.5987,151.5,151.47,6.5997]
[1745831322740,6.5987,151.5,151.48,6.5994]
[1745831322945,6.5987,151.5,151.44,5.9326]
[1745831323543,6.5987,151.5,151.47,6.5996]
[1745831324142,36.62687567,151.52,151.47,6.5996]
[1745831324440,4.46939056,151.51,151.47,6.5996]
[1745831324740,11.06819056,151.5,151.47,6.5996]
[1745831324934,6.5988,151.5,151.47,6.5996]
[1745831325142,36.62687567,151.52,151.47,6.5996]
[1745831325338,4.4701465,151.51,151.47,6.5996]
[1745831325645,4.4701465,151.5,151.47,6.5996]
[1745831325849,6.5986,151.5,151.47,6.5996]
[1745831327244,4.47225478,151.49,151.47,6.5996]
[1745831327446,6.5986,151.5,151.47,6.5996]
[1745831328947,6.599,151.49,151.47,6.5996]
[1745831330944,6.599,151.49,151.46,6.6]
[1745831332149,6.5987,151.5,151.47,6.5997]
[1745831332352,4.47889808,151.49,151.44,5.9326]
[1745831332550,4.47889808,151.48,151.44,5.9326]
[1745831332750,6.5987,151.5,151.47,6.5995]
[1745831332953,4.48188524,151.49,151.47,6.5995]
[1745831333156,4.48188524,151.48,151.47,6.5995]
[1745831333651,4.48459901,151.48,151.46,6.6]
[1745831333851,6.5991,151.49,151.46,6.6]
[1745831334052,4.48460415,151.48,151.46,6.6]
[1745831334253,4.48681835,151.47,151.43,23.4]
[1745831334450,4.48691334,151.46,151.4,23.32]
[1745831334651,4.48691334,151.45,151.4,23.32]
[1745831334851,6.6009,151.45,151.42,6.6016]
[1745831335053,6.6009,151.45,151.4,23.32]
[1745831335653,6.6004,151.46,151.43,6.6013]
[1745831335952,6.6004,151.46,151.4,23.32]
[1745831335953,4.48913678,151.45,151.4,23.32]
[1745831336153,34.60107567,151.48,151.4,23.32]
[1745831336356,11.08914104,151.47,151.44,6.6011]
[1745831336552,4.48914104,151.46,151.44,6.6011]
[1745831336853,4.48914104,151.45,151.44,6.6011]
[1745831337355,4.4893819,151.45,151.44,6.6011]
[1745831337857,4.48926004,151.45,151.44,6.6011]
[1745831339057,6.5991,151.49,151.46,6.5999]
[1745831339260,4.48942591,151.48,151.46,6.5999]
[1745831339460,4.48942591,151.47,151.46,6.5999]
[1745831340059,27.80942591,151.47,151.42,6.6016]
[1745831340257,11.28107567,151.45,151.4,23.32]
[1745831340455,4.48942591,151.44,151.4,23.32]
[1745831340652,4.48942591,151.43,151.41,6.6022]
[1745831340960,4.49313781,151.42,151.33,372.28107567]
[1745831341260,4.49313781,151.41,151.35,11.28107567]
[1745831341460,6.6013,151.44,151.37,11.28107567]
[1745831341658,4.49391081,151.43,151.37,11.28107567]
[1745831341860,4.49391081,151.42,151.37,11.28107567]
[1745831342059,23.32,151.46,151.39,11.28107567]
[1745831342354,4.49175393,151.45,151.42,6.6019]
[1745831342558,4.49175393,151.44,151.42,6.6019]
[1745831342759,4.49175393,151.43,151.42,6.6019]
[1745831342960,23.32,151.46,151.42,6.6019]
[1745831343159,4.49211597,151.45,151.41,6.6022]
[1745831343361,4.49211597,151.44,151.4,29.3446]
[1745831343565,29.9206,151.46,151.4,29.3446]
[1745831343755,4.49294468,151.45,151.4,29.3446]
[1745831343956,4.49294468,151.44,151.42,6.6018]
[1745831344158,23.32,151.46,151.4,29.3446]
[1745831344451,4.49396324,151.45,151.43,6.6013]
[1745831344657,6.5995,151.48,151.41,11.28107567]
[1745831345054,23.32,151.49,151.46,6.6002]
[1745831345257,6.5993,151.49,151.43,11.28107567]
[1745831345658,11.28107567,151.51,151.45,6.6003]
[1745831345858,6.5996,151.48,151.45,6.6003]
[1745831347257,11.28107567,151.51,151.4,29.3446]
[1745831347463,11.28107567,151.49,151.4,29.3446]
[1745831348762,6.6,151.47,151.44,6.6007]
[1745831349367,6.5995,151.48,151.44,6.6007]
[1745831349663,6.5995,151.48,151.45,6.6006]
[1745831351165,6.5991,151.49,151.46,6.6002]
[1745831351968,6.5991,151.49,151.45,6.6005]
[1745831352368,6.5991,151.49,151.41,11.28107567]
[1745831353067,6.5983,151.51,151.43,11.28107567]
[1745831353274,23.32,151.52,151.45,11.28107567]
[1745831353570,6.5987,151.5,151.46,6.5999]
[1745831353770,6.53835493,151.5,151.46,6.5999]
[1745831354067,6.53835493,151.5,151.45,23.32]
[1745831354368,6.53835493,151.5,151.47,6.5998]
[1745831356570,6.5981,151.51,151.48,6.5993]
[1745831356870,6.5981,151.51,151.45,23.32]
[1745831357172,6.5986,151.5,151.47,6.5996]
[1745831357873,6.5982,151.51,151.47,6.5996]
[1745831358078,6.5982,151.51,151.48,6.5994]
[1745831358268,23.32,151.52,151.48,6.5994]
[1745831358565,29.918,151.52,151.48,6.5994]
[1745831358767,23.32,151.52,151.45,34.60107567]
[1745831359071,40.66347567,151.55,151.45,34.60107567]
[1745831359272,40.66347567,151.55,151.48,6.5989]
[1745831359473,6.5979,151.52,151.45,34.60107567]
[1745831359874,40.66347567,151.55,151.45,34.60107567]
[1745831360069,40.66347567,151.55,151.46,11.28107567]
[1745831360374,40.66347567,151.55,151.51,6.598]
[1745831360672,40.66347567,151.55,151.46,17.20537567]
[1745831360873,40.66347567,151.55,151.51,6.5978]
[1745831361073,47.25997567,151.55,151.46,17.20537567]
[1745831361273,23.32,151.55,151.48,11.28107567]
[1745831361472,23.32,151.55,151.49,23.32]
[1745831361875,11.28107567,151.57,151.49,23.32]
[1745831362474,34.60107567,151.58,151.49,23.32]
[1745831362879,6.5955,151.57,151.54,6.5966]
[1745831363072,6.5955,151.57,151.49,23.32]
[1745831363271,34.60107567,151.58,151.49,23.32]
[1745831363480,6.596,151.56,151.53,6.5969]
[1745831363777,34.60107567,151.58,151.49,23.32]
[1745831363981,11.28107567,151.56,151.49,23.32]
[1745831364472,11.28107567,151.52,151.46,29.2243]
[1745831364674,6.5982,151.51,151.48,6.5991]
[1745831366775,6.5982,151.51,151.49,6.5989]
[1745831366975,6.5982,151.51,151.46,29.2243]
[1745831367275,17.87887567,151.52,151.49,6.5989]
[1745831367880,6.5983,151.51,151.48,6.5992]
[1745831368779,6.5983,151.51,151.49,6.5989]
[1745831369381,17.87887567,151.52,151.49,6.5989]
[1745831370083,17.87887567,151.52,151.5,6.5985]
[1745831370279,11.28107567,151.52,151.5,6.5985]
[1745831371583,17.87877567,151.52,151.5,6.5985]
[1745831373387,6.5974,151.53,151.46,23.3]
[1745831374088,6.5974,151.53,151.5,6.5982]
[1745831374284,34.58107567,151.54,151.5,6.5982]
[1745831374585,6.5977,151.52,151.5,6.5982]
[1745831376189,6.5981,151.51,151.49,6.5988]
[1745831376789,11.28107567,151.5,151.43,25.2107]
[1745831377190,6.5996,151.48,151.46,6.6002]
[1745831377693,6.5996,151.48,151.45,6.6003]
[1745831383595,6.5992,151.49,151.45,6.6003]
[1745831383896,6.5992,151.49,151.46,6.6002]
[1745831384395,6.5992,151.49,151.43,25.2107]
[1745831384396,41.17967567,151.5,151.47,6.5998]
[1745831386395,6.599,151.49,151.47,6.5998]
[1745831389403,41.17977567,151.5,151.48,6.5994]
[1745831391104,23.3,151.5,151.49,6.5989]
[1745831392012,19.77787567,151.52,151.43,25.2107]
[1745831392209,13.17997567,151.52,151.43,25.2107]
[1745831392611,6.5982,151.51,151.48,6.5989]
[1745831393510,13.17997567,151.52,151.47,6.5995]
[1745831394414,6.5988,151.5,151.47,6.5995]
[1745831395414,6.5988,151.5,151.48,6.5993]
[1745831395915,6.5989,151.49,151.43,25.2107]
[1745831397912,6.5989,151.49,151.46,6.5999]
[1745831398914,6.5998,151.47,151.43,25.2107]
[1745831399117,6.5998,151.47,151.43,23.3]
[1745831399318,11.28107567,151.5,151.43,23.3]
[1745831399617,11.28107567,151.5,151.44,6.6009]
[1745831399917,6.6002,151.47,151.44,6.6009]
[1745831401827,6.5996,151.48,151.45,6.6006]
[1745831402023,6.5996,151.48,151.43,23.3]
[1745831402327,6.5992,151.49,151.43,23.3]
[1745831402720,34.54107567,151.5,151.47,6.5998]
[1745831402925,34.54107567,151.5,151.43,23.3]
[1745831402926,29.8583,151.51,151.43,23.3]
[1745831403222,23.26,151.51,151.47,6.5995]
[1745831403423,6.5986,151.5,151.47,6.5995]
[1745831404328,29.8583,151.51,151.48,6.5992]
[1745831404527,23.26,151.51,151.44,11.28107567]
[1745831404729,3.9466,151.53,151.44,11.28107567]
[1745831404930,6.5981,151.51,151.48,6.5992]
[1745831405125,11.28107567,151.52,151.44,11.28107567]
[1745831405324,17.87897567,151.52,151.49,6.5987]
[1745831405526,6.5979,151.52,151.44,11.28107567]
[1745831405723,34.54107567,151.54,151.44,11.28107567]
[1745831405928,6.5974,151.53,151.5,6.5985]
[1745831406330,6.5975,151.53,151.5,6.5985]
[1745831408133,6.5975,151.53,151.44,11.28107567]
[1745831408433,29.8569,151.54,151.48,11.28107567]
[1745831408832,29.8569,151.54,151.47,23.26]
[1745831409628,6.5973,151.53,151.47,23.26]
[1745831410134,6.5973,151.53,151.5,6.5982]
[1745831411935,41.13807567,151.54,151.51,6.598]
[1745831412233,23.26,151.54,151.47,23.26]
[1745831412937,29.857,151.54,151.51,6.598]
[1745831413234,23.26,151.54,151.47,23.26]
[1745831413438,23.26,151.54,151.47,27.289]
[1745831413633,23.26,151.54,151.51,6.5978]
[1745831414436,29.8568,151.54,151.51,6.5978]
[1745831414735,29.8568,151.54,151.47,27.289]
[1745831414736,34.54107567,151.54,151.47,27.289]
[1745831415037,6.5981,151.51,151.47,27.289]
[1745831415335,6.5981,151.51,151.48,6.5992]
[1745831415635,11.28107567,151.52,151.5,6.5982]
[1745831415833,34.54107567,151.54,151.47,27.289]
[1745831416033,23.26,151.54,151.47,27.289]
[1745831416534,11.28107567,151.56,151.48,11.28107567]
[1745831416734,17.87717567,151.56,151.48,13.30447567]
[1745831416940,17.87717567,151.56,151.52,6.5972]
[1745831417237,17.87717567,151.56,151.48,13.30447567]
[1745831417636,17.87717567,151.56,151.52,6.5972]
[1745831418437,17.87717567,151.56,151.53,6.5972]
[1745831419038,17.87717567,151.56,151.48,13.30447567]
[1745831419039,6.5964,151.55,151.52,6.5974]
[1745831419339,6.5964,151.55,151.48,13.30447567]
[1745831420339,6.5964,151.55,151.52,6.5974]
[1745831422935,6.5964,151.55,151.53,6.5972]
[1745831423136,17.87717567,151.56,151.53,6.5972]
[1745831423941,17.87717567,151.56,151.54,6.5966]
[1745831424241,6.5965,151.55,151.48,13.30447567]
[1745831424842,11.28107567,151.56,151.48,13.30447567]
[1745831425645,17.87717567,151.56,151.53,6.597]
[1745831425844,6.5961,151.56,151.53,6.597]
[1745831426044,40.59907567,151.57,151.48,13.30447567]
[1745831426344,17.87767567,151.55,151.52,6.5974]
[1745831427244,11.28107567,151.55,151.53,6.5971]
[1745831428539,17.87747567,151.55,151.53,6.5971]
[1745831428845,11.28107567,151.55,151.48,2.0234]
[1745831429343,17.87767567,151.55,151.48,2.0234]
[1745831430045,17.87767567,151.55,151.52,6.5974]
[1745831430547,11.28107567,151.55,151.52,6.5974]
[1745831431152,17.87747567,151.55,151.52,6.5974]
[1745831433746,17.87747567,151.55,151.53,6.5972]
[1745831433950,17.87747567,151.55,151.48,2.0234]
[1745831434350,17.87747567,151.55,151.52,6.5974]
[1745831434851,17.87747567,151.55,151.53,6.5971]
[1745831439754,11.28107567,151.55,151.54,6.5968]
[1745831440255,17.87737567,151.55,151.54,6.5968]
[1745831440451,34.52107567,151.57,151.48,13.30447567]
[1745831441053,6.5968,151.54,151.48,13.30447567]
[1745831441255,11.28107567,151.55,151.48,2.0234]
[1745831441456,11.28107567,151.53,151.47,23.26]
[1745831442058,6.5977,151.52,151.47,23.26]
[1745831442254,6.5977,151.52,151.5,6.5985]
[1745831444160,6.5981,151.51,151.47,23.26]
[1745831444560,6.5981,151.51,151.48,6.5993]
[1745831445061,6.5981,151.51,151.47,23.26]
[1745831445561,6.5981,151.51,151.48,6.5993]
[1745831446157,6.5981,151.51,151.47,23.26]
[1745831446362,6.5981,151.51,151.48,6.5993]
[1745831446562,11.28107567,151.49,151.43,29.1689]
[1745831446759,11.28107567,151.47,151.43,23.24]
[1745831447161,11.28107567,151.45,151.4,23.24]
[1745831447656,11.28107567,151.43,151.4,6.6025]
[1745831447862,11.28107567,151.43,151.38,6.039]
[1745831448272,11.28107567,151.43,151.4,6.6026]
[1745831448662,17.88287567,151.43,151.4,6.6028]
[1745831449170,11.28107567,151.43,151.41,6.6022]
[1745831449476,34.52107567,151.45,151.38,4.069]
[1745831450668,34.52107567,151.45,151.42,6.6017]
[1745831450868,34.52107567,151.45,151.38,4.069]
[1745831452269,41.12207567,151.45,151.42,6.6019]
[1745831452469,34.52107567,151.45,151.38,4.069]
[1745831454972,11.28107567,151.45,151.38,4.069]
[1745831455370,11.28107567,151.45,151.38,15.35007567]
[1745831456072,11.28107567,151.45,151.42,6.6016]
[1745831456374,11.28107567,151.45,151.38,15.35007567]
[1745831457670,11.28107567,151.45,151.42,6.6017]
[1745831457872,11.28107567,151.45,151.38,4.069]
[1745831458072,11.28107567,151.45,151.37,23.24]
[1745831458368,11.28107567,151.45,151.39,6.6031]
[1745831458573,11.28107567,151.43,151.39,6.6031]
[1745831458769,11.28107567,151.43,151.37,23.24]
[1745831458969,6.6025,151.41,151.38,6.6035]
[1745831459867,6.6021,151.42,151.38,6.6035]
[1745831460079,11.28107567,151.43,151.38,6.6035]
[1745831460573,11.28107567,151.43,151.39,6.6033]
[1745831460965,17.88287567,151.43,151.39,6.6033]
[1745831461170,17.88287567,151.43,151.4,6.6028]
[1745831461469,11.28107567,151.43,151.4,6.6028]
[1745831461666,11.28107567,151.43,151.35,1.9547]
[1745831461866,11.28107567,151.41,151.34,23.26]
[1745831462167,6.6031,151.4,151.34,23.26]
[1745831462370,11.28107567,151.39,151.34,23.26]
[1745831462771,11.28107567,151.37,151.33,6.6055]
[1745831463075,11.28107567,151.37,151.31,25.2345]
[1745831463877,11.28107567,151.39,151.31,25.2345]
[1745831464278,6.6039,151.38,151.31,25.2345]
[1745831464876,6.6039,151.38,151.34,6.6052]
[1745831465179,6.6039,151.38,151.31,25.2345]
[1745831465578,6.6039,151.38,151.34,6.6051]
[1745831465780,6.6039,151.38,151.31,25.2345]